fUST/lending_fUST_20250725
["ID","MTS","AMOUNT","RATE_DAILY","PERIOD"]
[374611379,1753375843961,-460.0,0.00022134,2]
[374611381,1753375843971,-883.24,0.00022136,2]
[374611382,1753375843980,-846.96064712,0.00022141,6]
[374611384,1753375843990,-1069.01348174,0.00022183,2]
[374611386,1753375843999,-846.96064712,0.00022348,7]
[374611389,1753375844012,-796.21,0.00022407,2]
[374611390,1753375844021,-2433.99,0.00022407,2]
[374611393,1753375844030,-1641.33,0.00022407,2]
[374611395,1753375844040,-713.45,0.00022407,2]
[374611397,1753375844052,-867.09,0.00022407,2]
[374611399,1753375844062,-768.03,0.00022408,2]
[374611401,1753375844071,-880.67,0.00022408,2]
[374611402,1753375844080,-657.63,0.00022408,2]
[374611405,1753375844094,-460.0,0.00022408,2]
[374611406,1753375844104,-460.0,0.00022408,2]
[374611408,1753375844113,-580.97,0.00022408,2]
[374611410,1753375844124,-1648.8,0.00022408,2]
[374611412,1753375844133,-460.0,0.00022408,2]
[374611414,1753375844143,-562.64,0.00022408,2]
[374611416,1753375844153,-1453.0,0.00022408,2]
[374611418,1753375844162,-460.0,0.00022408,2]
[374611420,1753375844172,-460.0,0.00022408,2]
[374611422,1753375844182,-3303.11,0.00022408,2]
[374611424,1753375844192,-460.0,0.00022408,2]
[374611426,1753375844201,-460.0,0.00022408,2]
[374611428,1753375844211,-460.0,0.00022408,2]
[374611430,1753375844221,-708.56,0.00022408,2]
[374611432,1753375844231,-460.0,0.00022408,2]
[374611434,1753375844240,-460.0,0.00022408,2]
[374611436,1753375844253,-883.24,0.0002241,2]
[374611438,1753375844262,-1689.63,0.00022465,2]
[374611440,1753375844272,-166.67,0.000225,2]
[374611442,1753375844281,-846.96064712,0.00022555,7]
[374611444,1753375844291,-360.0,0.00022574,2]
[374611446,1753375844301,-1069.01348174,0.00022657,2]
[374611448,1753375844311,-800.0,0.0002267,2]
[374611450,1753375844320,-796.21,0.00022681,2]
[374611452,1753375844331,-2433.99,0.00022681,2]
[374611455,1753375844346,-1641.33,0.00022681,2]
[374611457,1753375844356,-713.45,0.00022681,2]
[374611459,1753375844366,-867.09,0.00022681,2]
[374611460,1753375844376,-768.03,0.00022682,2]
[374611462,1753375844389,-880.67,0.00022682,2]
[374611465,1753375844400,-657.63,0.00022682,2]
[374611467,1753375844412,-460.0,0.00022682,2]
[374611468,1753375844423,-460.0,0.00022682,2]
[374611470,1753375844434,-580.97,0.00022682,2]
[374611472,1753375844444,-1648.8,0.00022682,2]
[374611473,1753375844455,-460.0,0.00022682,2]
[374611474,1753375844465,-562.64,0.00022682,2]
[374611475,1753375844476,-1453.0,0.00022682,2]
[374611476,1753375844487,-460.0,0.00022682,2]
[374611477,1753375844498,-588.45,0.00022682,2]
[374611478,1753375844510,-3303.11,0.00022682,2]
[374611479,1753375844520,-460.0,0.00022682,2]
[374611480,1753375844530,-460.0,0.00022682,2]
[374611481,1753375844543,-460.0,0.00022682,2]
[374611482,1753375844553,-708.56,0.00022682,2]
[374611483,1753375844563,-460.0,0.00022682,2]
[374611484,1753375844572,-460.0,0.00022682,2]
[374611485,1753375844582,-883.24,0.00022684,2]
[374611486,1753375844595,-714.0,0.00022689,2]
[374611487,1753375844604,-572.0,0.00022689,2]
[374611488,1753375844615,-151.0,0.00022689,2]
[374611489,1753375844625,-151.0,0.00022689,2]
[374611490,1753375844635,-151.0,0.00022689,2]
[374611491,1753375844645,-151.0,0.00022689,2]
[374611492,1753375844655,-151.0,0.00022689,2]
[374611493,1753375844665,-211.12151948,0.00022689,2]
[374611494,1753375844675,-151.0,0.00022689,2]
[374611495,1753375844684,-800.0,0.00022706,2]
[374611496,1753375844694,-846.96064712,0.00022762,7]
[374611497,1753375844704,-284.90544308,0.00022773,2]
[374611498,1753375844713,-500.0,0.00022773,2]
[374611499,1753375844723,-500.0,0.00022773,2]
[374611500,1753375844732,-500.0,0.00022773,2]
[374611501,1753375844741,-500.0,0.00022773,2]
[374611502,1753375844751,-370000.0,0.000228,2]
[374611503,1753375844760,-32140.23,0.000228,2]
[374611504,1753375844771,-800.0,0.00022812,2]
[374611505,1753375844780,-171.57040078,0.0002283,2]
[374611507,1753375844790,-800.0,0.0002283,2]
[374611509,1753375844799,-811.43970814,0.00022852,2]
[374611511,1753375844808,-169.80964635,0.00022882,2]
[374611513,1753375844817,-800.0,0.00022889,2]
[374611515,1753375844827,-5000.0,0.00022895,2]
[374611517,1753375844836,-1711.7267647,0.000229,7]
[374611519,1753375844847,-3535.96,0.000229,7]
[374611521,1753375844857,-396.44110363,0.000229,2]
[374611523,1753375844867,-214.7213231,0.000229,7]
[374611525,1753375844876,-641.21,0.000229,6]
[374611527,1753375844886,-3000.0,0.0002291,2]
[374611528,1753375844895,-3000.0,0.0002292,2]
[374611530,1753375844905,-268087.87468718,0.00022929,2]
[374611532,1753375844914,-3000.0,0.0002293,2]
[374611534,1753375844923,-3000.0,0.0002294,2]
[374611536,1753375844932,-5487.829617,0.0002295,2]
[374611538,1753375844942,-5000.0,0.00022955,2]
[374611540,1753375844951,-796.21,0.00022955,2]
[374611542,1753375844960,-2433.99,0.00022955,2]
[374611544,1753375844970,-1641.33,0.00022955,2]
[374611546,1753375844980,-713.45,0.00022955,2]
[374611547,1753375844990,-867.09,0.00022955,2]
[374611549,1753375845001,-768.03,0.00022956,2]
[374611551,1753375845012,-880.67,0.00022956,2]
[374611552,1753375845022,-657.63,0.00022956,2]
[374611554,1753375845032,-460.0,0.00022956,2]
[374611556,1753375845041,-460.0,0.00022956,2]
[374611558,1753375845054,-580.97,0.00022956,2]
[374611560,1753375845063,-1648.8,0.00022956,2]
[374611562,1753375845073,-460.0,0.00022956,2]
[374611563,1753375845082,-562.64,0.00022956,2]
[374611564,1753375845095,-1453.0,0.00022956,2]
[374611565,1753375845105,-460.0,0.00022956,2]
[374611566,1753375845115,-3303.11,0.00022956,2]
[374611567,1753375845125,-460.0,0.00022956,2]
[374611570,1753375845135,-460.0,0.00022956,2]
[374611571,1753375845144,-460.0,0.00022956,2]
[374611573,1753375845154,-708.56,0.00022956,2]
[374611575,1753375845164,-460.0,0.00022956,2]
[374611577,1753375845173,-154.13278373,0.00022956,2]
[374611579,1753375845182,-883.24,0.00022958,2]
[374611580,1753375845192,-714.0,0.00022963,2]
[374611582,1753375845202,-572.0,0.00022963,2]
[374611584,1753375845211,-151.0,0.00022963,2]
[374611586,1753375845221,-151.0,0.00022963,2]
[374611588,1753375845231,-151.0,0.00022963,2]
[374611590,1753375845240,-151.0,0.00022963,2]
[374611591,1753375845250,-846.96064712,0.00022969,8]
[374611593,1753375845260,-503.76840278,0.00022973,2]
[374611595,1753375845270,-500.0,0.00022973,2]
[374611597,1753375845280,-500.0,0.00022973,2]
[374611598,1753375845290,-500.0,0.00022973,2]
[374611600,1753375845300,-500.0,0.00022973,2]
[374611602,1753375845310,-500.0,0.00022973,2]
[374611603,1753375845320,-500.0,0.00022973,2]
[374611604,1753375845331,-999.999999,0.0002298,2]
[374611605,1753375845343,-517.02,0.00022991,3]
[374611606,1753375845353,-778.63,0.00022996,7]
[374611607,1753375845364,-3000.0,0.00023,2]
[374611608,1753375845373,-1965.8065903,0.00023,2]
[374611609,1753375845383,-9810.06450645,0.00023,2]
[374611610,1753375845392,-33569.2820526,0.00023,4]
[374611611,1753375845402,-346.68603289,0.00023,2]
[374611612,1753375845411,-53019.3199952,0.00023,2]
[374611613,1753375845419,-1336.56704993,0.00023,2]
[374611614,1753375845429,-160.0,0.00023,2]
[374611615,1753375845438,-166.67,0.00023005,2]
[374611616,1753375845447,-3000.0,0.0002301,2]
[374611618,1753375845456,-173.0,0.00023014,7]
[374611619,1753375845466,-20011.51413843,0.00023018,2]
[374611620,1753375845476,-3000.0,0.0002302,2]
[374611621,1753375845486,-3000.0,0.0002303,2]
[374611622,1753375845497,-3000.0,0.0002304,2]
[374611623,1753375845510,-3000.0,0.0002305,2]
[374611624,1753375845522,-3000.0,0.0002306,2]
[374611625,1753375845534,-3000.0,0.0002307,2]
[374611626,1753375845545,-3000.0,0.0002308,2]
[374611627,1753375845555,-3000.0,0.0002309,2]
[374611628,1753375845566,-517.02,0.00023091,5]
[374611629,1753375845577,-778.66,0.00023096,5]
[374611630,1753375845590,-3000.0,0.000231,2]
[374611631,1753375845603,-3000.0,0.0002311,2]
[374611632,1753375845613,-3000.0,0.0002312,2]
[374611633,1753375845623,-460.0,0.00023122,2]
[374611634,1753375845633,-3000.0,0.0002313,2]
[374611635,1753375845642,-1069.01348174,0.00023131,2]
[374611636,1753375845652,-3000.0,0.0002314,2]
[374611637,1753375845662,-3000.0,0.0002315,2]
[374611639,1753375845672,-3000.0,0.0002316,2]
[374611641,1753375845683,-3000.0,0.0002317,2]
[374611643,1753375845693,-846.96064712,0.00023176,8]
[374611645,1753375845704,-3000.0,0.0002318,2]
[374611647,1753375845714,-3000.0,0.0002319,2]
[374611649,1753375845724,-517.02,0.00023191,4]
[374611650,1753375845735,-3000.0,0.000232,2]
[374611651,1753375845744,-1359.49,0.000232,7]
[374611652,1753375845754,-2115.88,0.000232,7]
[374611653,1753375845763,-3000.0,0.0002321,2]
[374611655,1753375845773,-3000.0,0.0002322,2]
[374611657,1753375845783,-796.21,0.00023229,2]
[374611659,1753375845793,-2433.99,0.00023229,2]
[374611661,1753375845803,-1641.33,0.00023229,2]
[374611662,1753375845813,-713.45,0.00023229,2]
[374611664,1753375845823,-867.09,0.00023229,2]
[374611666,1753375845833,-3000.0,0.0002323,2]
[374611668,1753375845847,-768.03,0.0002323,2]
[374611670,1753375845857,-880.67,0.0002323,2]
[374611672,1753375845866,-657.63,0.0002323,2]
[374611674,1753375845876,-518.78682023,0.0002323,2]
[374611675,1753375845888,-460.0,0.0002323,2]
[374611676,1753375845899,-580.97,0.0002323,2]
[374611677,1753375845910,-1648.8,0.0002323,2]
[374611678,1753375845920,-496.95269013,0.0002323,2]
[374611679,1753375845930,-562.64,0.0002323,2]
[374611680,1753375845940,-1453.0,0.0002323,2]
[374611681,1753375845950,-460.0,0.0002323,2]
[374611682,1753375845960,-3303.11,0.0002323,2]
[374611683,1753375845971,-460.0,0.0002323,2]
[374611684,1753375845981,-460.0,0.0002323,2]
[374611685,1753375845991,-460.0,0.0002323,2]
[374611686,1753375846004,-708.56,0.0002323,2]
[374611687,1753375846120,-460.0,0.0002323,2]
[374611688,1753375846139,-883.24,0.00023232,2]
[374611689,1753375846148,-714.0,0.00023237,2]
[374611690,1753375846158,-572.0,0.00023237,2]
[374611691,1753375846168,-198.0,0.00023237,2]
[374611692,1753375846177,-151.0,0.00023237,2]
[374611693,1753375846187,-3000.0,0.0002324,2]
[374611694,1753375846197,-3000.0,0.0002325,2]
[374611695,1753375846207,-3000.0,0.0002326,2]
[374611696,1753375846216,-3000.0,0.0002327,2]
[374611697,1753375846226,-3000.0,0.0002328,2]
[374611698,1753375846236,-3000.0,0.0002329,2]
[374611699,1753375846245,-517.02,0.00023291,5]
[374611701,1753375846255,-3000.0,0.000233,2]
[374611702,1753375846264,-3000.0,0.0002331,2]
[374611704,1753375846274,-3000.0,0.0002332,2]
[374611706,1753375846284,-1000.0,0.00023321,2]
[374611708,1753375846293,-500.0,0.00023321,2]
[374611710,1753375846304,-3000.0,0.0002333,2]
[374611712,1753375846313,-3000.0,0.0002334,2]
[374611713,1753375846323,-3000.0,0.0002335,2]
[374611715,1753375846333,-3000.0,0.0002336,2]
[374611716,1753375846346,-617.25199883,0.0002337,2]
[374611717,1753375846441,-500.0,0.0002337,2]
[374611718,1753375846453,-1882.74800117,0.0002337,2]
[374611719,1753375846463,-2110.05201276,0.0002338,2]
[374611720,1753375846478,-442.75255616,0.0002338,2]
[374611721,1753375846488,-3000.0,0.0002338,2]
[374611722,1753375846498,-846.96064712,0.00023383,9]
[374611723,1753375846508,-3000.0,0.0002339,2]
[374611724,1753375846518,-517.02,0.00023391,2]
[374611725,1753375846528,-2256.0,0.00023398,2]
[374611726,1753375846537,-3000.0,0.000234,2]
[374611727,1753375846546,-1126.60340077,0.000234,2]
[374611728,1753375846555,-3000.0,0.0002341,2]
[374611729,1753375846566,-3000.0,0.0002342,2]
[374611730,1753375846575,-3000.0,0.0002343,2]
[374611731,1753375846584,-250.0,0.00023434,2]
[374611732,1753375846596,-3278.698233,0.0002344,2]
[374611733,1753375846606,-517.02,0.00023491,3]
[374611734,1753375846616,-796.21,0.00023503,2]
[374611735,1753375846626,-2433.99,0.00023503,2]
[374611736,1753375846636,-1641.33,0.00023503,2]
[374611737,1753375846646,-713.45,0.00023503,2]
[374611738,1753375846655,-867.09,0.00023503,2]
[374611739,1753375846667,-768.03,0.00023504,2]
[374611740,1753375846676,-880.67,0.00023504,2]
[374611741,1753375846685,-657.63,0.00023504,2]
[374611742,1753375846696,-460.0,0.00023504,2]
[374611743,1753375846706,-580.97,0.00023504,2]
[374611744,1753375846716,-1648.8,0.00023504,2]
[374611745,1753375846725,-562.64,0.00023504,2]
[374611746,1753375846735,-1453.0,0.00023504,2]
[374611747,1753375846746,-460.0,0.00023504,2]
[374611748,1753375846757,-3303.11,0.00023504,2]
[374611749,1753375846767,-460.0,0.00023504,2]
[374611750,1753375846777,-460.0,0.00023504,2]
[374611751,1753375846787,-460.0,0.00023504,2]
[374611752,1753375846796,-708.56,0.00023504,2]
[374611753,1753375846806,-460.0,0.00023504,2]
[374611754,1753375846815,-883.24,0.00023506,2]
[374611755,1753375846824,-166.67,0.00023508,2]
[374611756,1753375846834,-714.0,0.00023511,2]
[374611757,1753375846848,-572.0,0.00023511,2]
[374611758,1753375846857,-198.0,0.00023511,2]
[374611759,1753375846867,-725.31371795,0.00023521,2]
[374611760,1753375846876,-209.42685915,0.00023521,2]
[374611761,1753375846886,-1000.0,0.00023521,2]
[374611762,1753375846895,-1000.0,0.00023521,2]
[374611763,1753375846905,-846.96064712,0.0002359,9]
[374611764,1753375846915,-517.02,0.00023591,3]
[374611765,1753375846924,-429.7456075,0.00023616,2]
[374611766,1753375846934,-429.7456075,0.00023616,2]
[374611767,1753375846943,-429.7456075,0.00023616,2]
[374611768,1753375846954,-429.7456075,0.00023616,2]
[374611769,1753375846963,-429.7456075,0.00023616,2]
[374611770,1753375846973,-429.7456075,0.00023616,2]
[374611771,1753375846982,-429.7456075,0.00023616,2]
[374611772,1753375846991,-429.7456075,0.00023616,2]
[374611773,1753375847002,-429.7456075,0.00023616,2]
[374611774,1753375847012,-429.7456075,0.00023616,2]
[374611775,1753375847025,-587.0,0.00023645,2]
[374611776,1753375847035,-560.0,0.0002367,2]
[374611777,1753375847045,-151.0,0.00023683,6]
[374611778,1753375847055,-517.02,0.00023691,7]
[374611779,1753375847065,-796.21,0.00023777,2]
[374611780,1753375847074,-2433.99,0.00023777,2]
[374611781,1753375847084,-1641.33,0.00023777,2]
[374611782,1753375847097,-713.45,0.00023777,2]
[374611783,1753375847107,-867.09,0.00023777,2]
[374611784,1753375847117,-768.03,0.00023778,2]
[374611785,1753375847127,-880.67,0.00023778,2]
[374611786,1753375847136,-657.63,0.00023778,2]
[374611787,1753375847146,-460.0,0.00023778,2]
[374611788,1753375847155,-580.97,0.00023778,2]
[374611789,1753375847164,-1648.8,0.00023778,2]
[374611790,1753375847174,-562.64,0.00023778,2]
[374611791,1753375847183,-1453.0,0.00023778,2]
[374611792,1753375847193,-460.0,0.00023778,2]
[374611793,1753375847203,-3303.11,0.00023778,2]
[374611794,1753375847212,-534.37654831,0.00023778,2]
[374611795,1753375847222,-460.0,0.00023778,2]
[374611796,1753375847232,-460.0,0.00023778,2]
[374611797,1753375847241,-708.56,0.00023778,2]
[374611798,1753375847251,-460.0,0.00023778,2]
[374611799,1753375847263,-883.24,0.0002378,2]
[374611800,1753375847273,-714.0,0.00023785,2]
[374611801,1753375847282,-572.0,0.00023785,2]
[374611802,1753375847292,-517.02,0.00023791,3]
[374611803,1753375847301,-846.96064712,0.00023797,9]
[374611804,1753375847311,-1000.0,0.00023868,2]
[374611805,1753375847320,-217.0,0.00023872,2]
[374611806,1753375847330,-159.9507963,0.0002389,2]
[374611807,1753375847340,-577.6552115,0.0002389,2]
[374611808,1753375847350,-178.3912236,0.0002389,2]
[374611809,1753375847359,-154.6022915,0.0002389,2]
[374611810,1753375847368,-200.129568,0.0002389,2]
[374611811,1753375847377,-306.1586121,0.0002389,2]
[374611812,1753375847387,-178.2667198,0.0002389,2]
[374611813,1753375847397,-577.6552115,0.0002389,2]
[374611814,1753375847407,-153.0,0.0002389,2]
[374611815,1753375847417,-159.9507963,0.0002389,2]
[374611816,1753375847427,-577.6552115,0.0002389,2]
[374611817,1753375847437,-159.9507963,0.0002389,2]
[374611818,1753375847446,-178.2667198,0.0002389,2]
[374611819,1753375847456,-178.2667198,0.0002389,2]
[374611820,1753375847465,-153.0,0.0002389,2]
[374611821,1753375847474,-159.9507963,0.0002389,2]
[374611822,1753375847483,-577.6552115,0.0002389,2]
[374611823,1753375847494,-159.9507963,0.0002389,2]
[374611824,1753375847504,-577.6552115,0.0002389,2]
[374611825,1753375847515,-159.9507963,0.0002389,2]
[374611826,1753375847524,-1035.6901492,0.0002389,2]
[374611827,1753375847534,-356.5334396,0.0002389,2]
[374611828,1753375847544,-153.0,0.0002389,2]
[374611829,1753375847553,-159.9507963,0.0002389,2]
[374611830,1753375847563,-178.2667198,0.0002389,2]
[374611831,1753375847573,-153.0,0.0002389,2]
[374611832,1753375847582,-159.9507963,0.0002389,2]
[374611833,1753375847596,-178.2667198,0.0002389,2]
[374611834,1753375847606,-159.2354349,0.0002389,2]
[374611835,1753375847616,-178.2667198,0.0002389,2]
[374611836,1753375847625,-178.2667198,0.0002389,2]
[374611837,1753375847634,-517.02,0.00023891,3]
[374611838,1753375847644,-32140.23,0.000239,2]
[374611839,1753375847653,-638.80033621,0.000239,2]
[374611840,1753375847662,-159.602822,0.00023973,2]
[374611841,1753375847672,-151.0,0.00023981,2]
[374611842,1753375847681,-215.0738,0.00023981,2]
[374611843,1753375847690,-630.23415282,0.00023981,2]
[374611844,1753375847699,-151.0,0.00023981,2]
[374611845,1753375847709,-151.0,0.00023981,2]
[374611846,1753375847719,-151.0,0.00023981,2]
[374611847,1753375847728,-151.0,0.00023981,2]
[374611848,1753375847737,-151.0,0.00023981,2]
[374611849,1753375847747,-151.0,0.00023981,2]
[374611850,1753375847756,-1771.67249661,0.00023981,2]
[374611851,1753375847766,-151.0,0.00023981,2]
[374611852,1753375847775,-151.0,0.00023981,2]
[374611853,1753375847784,-151.0,0.00023981,2]
[374611854,1753375847793,-151.0,0.00023981,2]
[374611855,1753375847803,-151.0,0.00023981,2]
[374611856,1753375847812,-151.0,0.00023981,2]
[374611857,1753375847822,-151.0,0.00023981,2]
[374611858,1753375847831,-151.0,0.00023981,2]
[374611859,1753375847844,-151.0,0.00023981,2]
[374611860,1753375847854,-151.0,0.00023981,2]
[374611861,1753375847864,-151.0,0.00023981,2]
[374611862,1753375847874,-151.0,0.00023981,2]
[374611863,1753375847884,-151.0,0.00023981,2]
[374611864,1753375847893,-151.0,0.00023981,2]
[374611865,1753375847903,-151.0,0.00023981,2]
[374611866,1753375847912,-151.0,0.00023981,2]
[374611867,1753375847922,-151.0,0.00023981,2]
[374611868,1753375847932,-151.0,0.00023981,2]
[374611869,1753375847941,-151.0,0.00023981,2]
[374611870,1753375847951,-151.0,0.00023981,2]
[374611871,1753375847970,-151.0,0.00023981,2]
[374611872,1753375847982,-151.0,0.00023981,2]
[374611873,1753375847992,-151.0,0.00023981,2]
[374611874,1753375848002,-151.0,0.00023981,2]
[374611875,1753375848016,-151.0,0.00023981,2]
[374611876,1753375848026,-278.67023657,0.00023981,2]
[374611877,1753375848037,-151.0,0.00023981,2]
[374611878,1753375848047,-151.0,0.00023981,2]
[374611879,1753375848058,-151.0,0.00023981,2]
[374611880,1753375848068,-151.0,0.00023981,2]
[374611881,1753375848079,-151.0,0.00023981,2]
[374611882,1753375848091,-151.0,0.00023981,2]
[374611883,1753375848103,-151.0,0.00023981,2]
[374611884,1753375848114,-151.0,0.00023981,2]
[374611885,1753375848124,-151.0,0.00023981,2]
[374611886,1753375848134,-151.0,0.00023981,2]
[374611887,1753375848144,-151.0,0.00023981,2]
[374611888,1753375848154,-151.0,0.00023981,2]
[374611889,1753375848164,-25000.0,0.00023981,2]
[374611890,1753375848175,-205.0,0.0002399,2]
[374611891,1753375848184,-517.02,0.00023991,7]
[374611892,1753375848195,-151.0,0.00023993,6]
[374611893,1753375848205,-3535.96,0.00024,7]
[374611894,1753375848215,-160.0,0.00024,7]
[374611895,1753375848225,-846.96064712,0.00024003,10]
[374611896,1753375848235,-166.67,0.00024011,2]
[374611897,1753375848244,-287.85286679,0.00024027,30]
[374611898,1753375848255,-796.21,0.00024051,2]
[374611899,1753375848265,-2433.99,0.00024051,2]
[374611900,1753375848276,-1641.33,0.00024051,2]
[374611901,1753375848286,-713.45,0.00024051,2]
[374611902,1753375848296,-867.09,0.00024051,2]
[374611903,1753375848308,-768.03,0.00024052,2]
[374611904,1753375848317,-880.67,0.00024052,2]
[374611905,1753375848327,-657.63,0.00024052,2]
[374611906,1753375848338,-460.0,0.00024052,2]
[374611907,1753375848351,-580.97,0.00024052,2]
[374611908,1753375848360,-1648.8,0.00024052,2]
[374611909,1753375848370,-562.64,0.00024052,2]
[374611910,1753375848380,-1453.0,0.00024052,2]
[374611911,1753375848390,-460.0,0.00024052,2]
[374611912,1753375848399,-3303.11,0.00024052,2]
[374611913,1753375848410,-460.0,0.00024052,2]
[374611914,1753375848420,-460.0,0.00024052,2]
[374611915,1753375848429,-708.56,0.00024052,2]
[374611916,1753375848439,-460.0,0.00024052,2]
[374611917,1753375848450,-217.0,0.00024052,2]
[374611918,1753375848460,-883.24,0.00024054,2]
[374611919,1753375848470,-714.0,0.00024059,2]
[374611920,1753375848481,-572.0,0.00024059,2]
[374611921,1753375848491,-375.39190922,0.00024068,2]
[374611922,1753375848500,-1542.18048329,0.00024068,2]
[374611923,1753375848511,-500.0,0.00024075,2]
[374611924,1753375848521,-517.02,0.00024091,2]
[374611925,1753375848531,-500.0,0.00024094,2]
[374611926,1753375848541,-217.0,0.00024114,2]
[374611927,1753375848551,-816.39450043,0.00024171,2]
[374611928,1753375848561,-517.02,0.00024191,6]
[374611929,1753375848571,-217.0,0.00024194,2]
[374611930,1753375848580,-5213.06280874,0.000242,2]
[374611931,1753375848592,-846.96064712,0.0002421,10]
[374611932,1753375848602,-820.0,0.00024218,2]
[374611933,1753375848612,-474.34331691,0.00024273,2]
[374611934,1753375848622,-517.02,0.00024291,7]
[374611935,1753375848633,-205.0,0.000243,2]
[374611936,1753375848643,-28297.50972987,0.000243,4]
[374611937,1753375848869,-24322.12931247,0.00023981,2]
[374611938,1753375848879,-5147.62430177,0.000243,4]
[374611939,1753375908768,178.78095232,0.00019249,2]
[374611940,1753375943354,1102.25861,0.00019337,2]
[374611941,1753376144763,177.0,0.00026027,120]
[374611942,1753376212363,191.22363672,0.00019248,2]
[374611943,1753376252641,172.667001,0.00019178,2]
[374611945,1753376426111,159.602822,0.00013699,2]
[374611947,1753376506815,10000.0,0.00018917,2]
[374611952,1753376568048,3138.96027443,0.00018842,2]
[374611953,1753376568084,20000.0,0.00018842,2]
[374611954,1753376568108,1761.03972557,0.00018842,2]
[374611956,1753376706676,163.97624602,0.00019742,2]
[374611957,1753376776693,425.86689081,0.000189,2]
[374611960,1753376826126,-1200.0,0.00019837,2]
[374611961,1753376826149,-300.0,0.00019837,2]
[374611962,1753376826171,-300.0,0.00019838,2]
[374611963,1753376826194,-300.0,0.00019838,2]
[374611964,1753376826216,-717.21241239,0.00019838,2]
[374611965,1753376849124,-482.78758761,0.00019838,2]
[374611966,1753376849145,-300.0,0.00019838,2]
[374611967,1753376849167,-30.2163934,0.00019838,2]
[374611973,1753377032213,-300.0,0.00019839,2]
[374611977,1753377032725,-244.0,0.00019839,2]
[374611978,1753377032735,-300.0,0.00019839,2]
[374611979,1753377032744,-269.0,0.00019839,2]
[374611980,1753377032753,-1200.0,0.00019839,2]
[374611981,1753377032762,-175.0,0.00019839,2]
[374611982,1753377032771,-428.82107626,0.00019839,2]
[374611983,1753377032780,-483.74088319,0.00019839,2]
[374612060,1753377037985,-16.25911681,0.00019839,2]
[374612061,1753377037996,-160.0,0.00019839,2]
[374612062,1753377038006,-500.0,0.0001984,2]
[374612063,1753377038016,-460.0,0.0001984,2]
[374612064,1753377038025,-460.0,0.0001984,2]
[374612065,1753377038035,-532.21282662,0.0001984,2]
[374612066,1753377038044,-460.0,0.0001984,2]
[374612067,1753377038054,-460.0,0.0001984,2]
[374612068,1753377038065,-460.0,0.0001984,2]
[374612069,1753377038076,-824.61,0.0001984,2]
[374612070,1753377038086,-460.0,0.0001984,2]
[374612072,1753377038095,-460.0,0.0001984,2]
[374612073,1753377038105,-423.76192844,0.0001984,2]
[374612074,1753377038115,-2527.76,0.0001984,2]
[374612075,1753377038124,-460.0,0.0001984,2]
[374612076,1753377038134,-460.0,0.0001984,2]
[374612077,1753377038145,-460.0,0.0001984,2]
[374612078,1753377038155,-460.0,0.0001984,2]
[374612079,1753377038165,-733.2,0.0001984,2]
[374612080,1753377038176,-448.31200967,0.0001984,2]
[374612081,1753377038185,-1536.37,0.0001984,2]
[374612082,1753377038195,-460.0,0.0001984,2]
[374612083,1753377038205,-460.0,0.0001984,2]
[374612084,1753377038215,-460.0,0.0001984,2]
[374612085,1753377038225,-460.0,0.0001984,2]